bitfinex/quotes_BTCUSD_20250619
["timestamp","ask_amount","ask_price","bid_price","bid_amount"]
[1750325326335,0.35903002,105090.0,105080.0,0.76258367]
[1750325326578,0.71816232,105090.0,105080.0,0.76258367]
[1750325327911,0.34951492,105090.0,105080.0,0.76258367]
[1750325328137,0.71816232,105090.0,105080.0,0.76258367]
[1750325328366,0.70864722,105090.0,105080.0,0.76258367]
[1750325329173,0.34951492,105090.0,105080.0,0.76258367]
[1750325329377,0.70864722,105090.0,105080.0,0.76258367]
[1750325329833,0.71816232,105090.0,105080.0,0.76258367]
[1750325330719,0.71816223,105090.0,105080.0,0.76258367]
[1750325332183,0.34951492,105090.0,105080.0,0.76258367]
[1750325332440,0.70864722,105090.0,105080.0,0.76258367]
[1750325333375,0.6991323,105090.0,105080.0,0.76258367]
[1750325337407,0.34,105090.0,105080.0,0.85785352]
[1750325337608,0.34,105090.0,105080.0,1.21698582]
[1750325337831,0.6991323,105090.0,105080.0,0.85785352]
[1750325339287,0.6991323,105090.0,105080.0,0.76258367]
[1750325342050,0.70864722,105090.0,105080.0,0.76258367]
[1750325342280,0.71816232,105090.0,105080.0,0.76258367]
[1750325343662,0.70864722,105090.0,105080.0,0.76258367]
[1750325344143,0.71816232,105090.0,105080.0,0.76258367]
[1750325344358,0.70864722,105090.0,105080.0,0.76258367]
[1750325344588,0.6991323,105090.0,105080.0,0.76258367]
[1750325344887,0.6991323,105090.0,105080.0,0.85785352]
[1750325352173,0.34,105090.0,105080.0,0.85785352]
[1750325352396,0.6991323,105090.0,105080.0,0.85785352]
[1750325352622,0.34,105090.0,105080.0,0.85785352]
[1750325352842,0.6991323,105090.0,105080.0,0.85785352]
[1750325355933,0.34,105090.0,105080.0,0.85785352]
[1750325356139,0.6991323,105090.0,105080.0,0.85785352]
[1750325357723,0.6991323,105090.0,105080.0,0.76258367]
[1750325363159,0.34,105090.0,105080.0,0.76258367]
[1750325363377,0.6991323,105090.0,105080.0,0.76258367]
[1750325364737,0.70864713,105090.0,105080.0,0.76258367]
[1750325366037,0.6991323,105090.0,105080.0,0.76258367]
[1750325366248,0.6991323,105090.0,105080.0,0.85785352]
[1750325367788,0.70864713,105090.0,105080.0,0.85785352]
[1750325368029,0.6991323,105090.0,105080.0,0.85785352]
[1750325368243,0.70864713,105090.0,105080.0,0.85785352]
[1750325368686,0.34951483,105090.0,105080.0,0.76258367]
[1750325368936,0.70864713,105090.0,105080.0,0.91650367]
[1750325369575,0.71816214,105090.0,105080.0,0.91650367]
[1750325370451,0.70864713,105090.0,105080.0,0.91650367]
[1750325373882,0.6991323,105090.0,105080.0,0.91650367]
[1750325375671,0.34,105090.0,105080.0,0.91650367]
[1750325375875,0.6991323,105090.0,105080.0,0.91650367]
[1750325376086,0.70864713,105090.0,105080.0,0.91650367]
[1750325380131,0.6991323,105090.0,105080.0,0.91650367]
[1750325381863,0.34,105090.0,105080.0,0.91650367]
[1750325382067,0.6991323,105090.0,105080.0,0.91650367]
[1750325384971,0.70864713,105090.0,105080.0,0.91650367]
[1750325385178,0.70864722,105090.0,105080.0,0.91650367]
[1750325386189,0.6991323,105090.0,105080.0,0.91650367]
[1750325386406,0.70864722,105090.0,105080.0,0.91650367]
[1750325386601,0.34951492,105090.0,105080.0,0.91650367]
[1750325386815,0.70864722,105090.0,105080.0,0.91650367]
[1750325388387,0.6991323,105090.0,105080.0,0.91650367]
[1750325388551,0.70864713,105090.0,105080.0,0.91650367]
[1750325391327,0.6991323,105090.0,105080.0,0.91650367]
[1750325391755,0.70864722,105090.0,105080.0,0.91650367]
[1750325391970,0.6991323,105090.0,105080.0,0.91650367]
[1750325392596,0.6991323,105090.0,105080.0,0.90650367]
[1750325394446,0.34,105090.0,105080.0,0.90650367]
[1750325394658,0.6991323,105090.0,105080.0,0.90650367]
[1750325395564,0.70864722,105090.0,105080.0,0.90650367]
[1750325395696,0.6991323,105090.0,105080.0,0.90650367]
[1750325398639,0.70864713,105090.0,105080.0,0.90650367]
[1750325400467,0.71816214,105090.0,105080.0,0.90650367]
[1750325400684,0.6991323,105090.0,105080.0,0.90650367]
[1750325402036,0.70864722,105090.0,105080.0,0.90650367]
[1750325402225,0.70864713,105090.0,105080.0,0.90650367]
[1750325406157,0.34,105090.0,105080.0,0.90650367]
[1750325406373,0.6991323,105090.0,105080.0,0.90650367]
[1750325407313,0.70864713,105090.0,105080.0,0.90650367]
[1750325408024,0.6991323,105090.0,105080.0,0.90650367]
[1750325408792,0.70864713,105090.0,105080.0,0.90650367]
[1750325409572,0.71816214,105090.0,105080.0,0.90650367]
[1750325410256,0.71816214,105090.0,105080.0,0.75258367]
[1750325410456,0.71816214,105090.0,105080.0,0.90646367]
[1750325410668,0.71816214,105090.0,105080.0,0.75258367]
[1750325410889,0.72767724,105090.0,105080.0,0.90646367]
[1750325413276,0.73719253,105090.0,105080.0,0.90646367]
[1750325413803,0.72767724,105090.0,105080.0,0.90646367]
[1750325414027,0.73719244,105090.0,105080.0,0.90646367]
[1750325414521,0.72767724,105090.0,105080.0,0.90646367]
[1750325414730,0.73719253,105090.0,105080.0,0.90646367]
[1750325414921,0.72767724,105090.0,105080.0,0.90646367]
[1750325415813,0.73719253,105090.0,105080.0,0.90646367]
[1750325416247,0.73719253,105090.0,105080.0,0.75258367]
[1750325416480,0.746708,105090.0,105080.0,0.90646367]
[1750325417430,0.74670791,105090.0,105080.0,0.90646367]
[1750325417859,0.73719244,105090.0,105080.0,0.90646367]
[1750325418072,0.74670773,105090.0,105080.0,0.90646367]
[1750325420068,0.74670828,105090.0,105080.0,0.90646367]
[1750325420907,0.7371929,105090.0,105080.0,0.90646367]
[1750325421409,0.74670828,105090.0,105080.0,0.90646367]
[1750325421625,0.7371929,105090.0,105080.0,0.90646367]
[1750325421841,0.72767761,105090.0,105080.0,0.90646367]
[1750325422894,0.73719299,105090.0,105080.0,0.90646367]
[1750325423863,0.7371929,105090.0,105080.0,0.90646367]
[1750325428296,0.7371929,105090.0,105080.0,0.64778882]
[1750325428542,0.7371929,105090.0,105080.0,0.81114474]
[1750325429853,0.72767761,105090.0,105080.0,0.81114474]
[1750325431501,0.71816241,105090.0,105080.0,0.81114474]
[1750325431723,0.73719308,105090.0,105080.0,0.81114474]
[1750325431932,0.73719299,105090.0,105080.0,0.81114474]
[1750325432137,0.72767761,105090.0,105080.0,0.81114474]
[1750325437347,0.7371929,105090.0,105080.0,0.81114474]
[1750325438197,0.3780606,105090.0,105080.0,0.81114474]
[1750325438425,0.72767761,105090.0,105080.0,0.81114474]
[1750325439360,0.71816241,105090.0,105080.0,0.81114474]
[1750325440173,0.35903011,105090.0,105080.0,0.90641459]
[1750325440416,0.71816241,105090.0,105080.0,0.90641459]
[1750325440972,0.71816241,105090.0,105080.0,0.81114474]
[1750325442652,0.6991323,105090.0,105080.0,0.81114474]
[1750325442859,0.70864731,105090.0,105080.0,0.81114474]
[1750325443068,0.6991323,105090.0,105080.0,0.81114474]
[1750325443271,0.70864722,105090.0,105080.0,0.81114474]
[1750325444025,0.70864713,105090.0,105080.0,0.81114474]
[1750325444243,0.34951483,105090.0,105080.0,0.81114474]
[1750325444484,0.71816214,105090.0,105080.0,0.81114474]
[1750325444696,0.70864713,105090.0,105080.0,0.81114474]
[1750325444918,0.34951483,105090.0,105080.0,0.81114474]
[1750325445138,0.70864713,105090.0,105080.0,0.81114474]
[1750325445999,0.34951483,105090.0,105080.0,0.81114474]
[1750325446457,0.70864713,105090.0,105080.0,0.81114474]
[1750325447648,0.34951483,105090.0,105080.0,0.81114474]
[1750325447872,0.70864713,105090.0,105080.0,0.81114474]
[1750325449457,0.72767706,105090.0,105080.0,0.81114474]
[1750325451153,0.36854476,105090.0,105080.0,0.81114474]
[1750325451387,0.71816205,105090.0,105080.0,0.81114474]
[1750325452767,0.70864713,105090.0,105080.0,0.81114474]
[1750325452972,0.34951483,105090.0,105080.0,0.81114474]
[1750325453165,0.71816214,105090.0,105080.0,0.81114474]
[1750325453400,0.70864713,105090.0,105080.0,0.81114474]
[1750325456164,0.71816214,105090.0,105080.0,0.81114474]
[1750325456375,0.70864713,105090.0,105080.0,0.81114474]
[1750325456595,0.71816214,105090.0,105080.0,0.81114474]
[1750325456786,0.70864713,105090.0,105080.0,0.81114474]
[1750325458794,0.71816205,105090.0,105080.0,0.81114474]
[1750325459029,0.72767715,105090.0,105080.0,0.81114474]
[1750325459249,0.73719253,105090.0,105080.0,0.81110474]
[1750325460063,0.746708,105090.0,105080.0,0.81110474]
[1750325460282,0.74670873,105090.0,105080.0,0.81110474]
[1750325461013,0.38757643,105090.0,105080.0,0.81110474]
[1750325461220,0.74670873,105090.0,105080.0,0.81110474]
[1750325464132,0.74670946,105090.0,105080.0,0.81110474]
[1750325465593,0.74670946,105090.0,105080.0,0.62875617]
[1750325465809,1.30155818,105090.0,105080.0,0.270925]
[1750325466538,6.87382253,105090.0,105080.0,0.25421525]
[1750325466789,6.93853394,105090.0,105080.0,0.23327526]
[1750325467020,7.00713655,105090.0,105080.0,0.23327526]
[1750325467243,6.96909238,105090.0,105080.0,0.23327526]
[1750325469166,7.12289238,105090.0,105080.0,0.23327526]
[1750325470619,0.21890031,105070.0,105060.0,0.48429702]
[1750325470825,1.09096491,105070.0,105060.0,0.49429702]
[1750325471441,1.09096491,105070.0,105060.0,0.50381502]
[1750325471660,0.54148332,105070.0,105060.0,0.58957769]
[1750325471872,0.55100069,105070.0,105060.0,0.58957769]
[1750325472514,0.74134998,105070.0,105060.0,0.57005996]
[1750325472726,0.74134998,105070.0,105060.0,0.58057787]
[1750325473707,0.74134998,105070.0,105060.0,0.58057742]
[1750325474172,0.74134998,105070.0,105060.0,0.50433248]
[1750325475272,0.74134998,105070.0,105060.0,0.49481466]
[1750325475963,0.73183325,105070.0,105060.0,0.49481466]
[1750325476645,0.72231624,105070.0,105060.0,0.48529675]
[1750325477098,1.08144854,105070.0,105060.0,0.48529675]
[1750325477329,1.08144854,105070.0,105060.0,0.49481466]
[1750325478092,0.72231624,105070.0,105060.0,0.50433248]
[1750325478527,0.74396032,105070.0,105060.0,0.50433248]
[1750325478927,0.72231624,105070.0,105060.0,0.50433248]
[1750325482282,0.7318337,105070.0,105060.0,0.50433248]
[1750325487514,0.7318337,105070.0,105060.0,0.49481466]
[1750325487724,0.71279905,105070.0,105060.0,0.47577875]
[1750325487930,1.07193135,105070.0,105060.0,0.47577875]
[1750325488137,1.06241389,105070.0,105060.0,0.26637526]
[1750325488542,1.06241389,105070.0,105060.0,0.25037526]
[1750325488748,1.49768374,105070.0,105060.0,0.23427526]
[1750325489188,1.52628674,105070.0,105060.0,0.23427526]
[1750325490246,1.43101689,105070.0,105060.0,0.23427526]
[1750325491011,1.44211689,105070.0,105060.0,0.23427526]
[1750325491443,1.46489579,105070.0,105060.0,0.23427526]
[1750325492053,1.46489579,105070.0,105060.0,0.23327526]
[1750325492267,1.46589579,105070.0,105060.0,0.23327526]
[1750325493334,1.45479579,105070.0,105060.0,0.23327526]
[1750325495247,1.45479579,105070.0,105060.0,0.24977526]
[1750325495895,1.46371282,105070.0,105060.0,0.24977526]
[1750325499514,1.46371077,105070.0,105060.0,0.24977526]
[1750325500157,1.46371077,105070.0,105060.0,0.26617526]
[1750325502974,1.45479579,105070.0,105060.0,0.26617526]
[1750325503173,1.4637101,105070.0,105060.0,0.26617526]
[1750325503514,1.55897995,105070.0,105060.0,0.26617526]
[1750325503850,1.55897995,105070.0,105060.0,0.27569363]
[1750325504074,1.55006564,105070.0,105060.0,0.27569363]
[1750325504306,1.45479579,105070.0,105060.0,0.26617526]
[1750325504562,1.4637099,105070.0,105060.0,0.26617526]
[1750325504794,1.4637099,105070.0,105060.0,0.46606093]
[1750325504795,1.45479579,105070.0,105060.0,0.46606093]
[1750325505028,1.45479579,105070.0,105060.0,0.47557911]
[1750325507205,1.55006564,105070.0,105060.0,0.47557911]
[1750325507851,1.45479579,105070.0,105060.0,0.4850972]
[1750325508417,1.46371085,105070.0,105060.0,0.4850972]
[1750325508842,1.46371212,105070.0,105060.0,0.4850972]
[1750325509278,1.47322949,105070.0,105060.0,0.49461511]
[1750325509492,1.47322949,105070.0,105060.0,0.4850972]
[1750325509734,1.47322949,105070.0,105060.0,0.4946152]
[1750325510550,1.56849934,105070.0,105060.0,0.4946152]
[1750325511799,1.47322949,105070.0,105060.0,0.4946152]
[1750325512021,1.47295531,105070.0,105060.0,0.4946152]
[1750325512986,1.47295531,105070.0,105060.0,0.4850972]
[1750325514500,1.47295815,105070.0,105060.0,0.4850972]
[1750325515135,1.47295815,105070.0,105060.0,0.4946152]
[1750325515474,1.47295815,105070.0,105060.0,0.4850972]
[1750325516131,1.47295815,105070.0,105060.0,0.4946152]
[1750325517271,1.46403898,105070.0,105060.0,0.4946152]
[1750325517489,1.47296379,105070.0,105060.0,0.4850972]
[1750325517803,0.75469919,105070.0,105060.0,0.4850972]
[1750325517991,1.47296379,105070.0,105060.0,0.4946152]
[1750325518273,1.47296379,105070.0,105060.0,0.4850972]
[1750325521340,1.47296379,105070.0,105060.0,0.4946152]
[1750325521984,1.47296475,105070.0,105060.0,0.4946152]
[1750325522646,1.47296475,105070.0,105060.0,0.50413311]
[1750325522647,1.30165002,105070.0,105060.0,0.50413311]
[1750325522861,1.30165005,105070.0,105060.0,0.50413311]
[1750325523532,1.49199934,105070.0,105060.0,0.50413311]
[1750325524475,1.49199934,105070.0,105060.0,0.4946152]
[1750325525507,0.77947374,105070.0,105060.0,0.50413293]
[1750325525732,0.76995673,105070.0,105060.0,0.50413293]
[1750325525940,0.92375673,105070.0,105060.0,0.50413293]
[1750325526160,0.3923819,105070.0,105060.0,0.50413293]
[1750325526375,0.7287353,105070.0,105060.0,0.50413293]
[1750325526589,0.7287353,105070.0,105060.0,0.75320278]
[1750325529119,0.369603,105070.0,105060.0,1.20761401]
[1750325529362,0.001,105070.0,105060.0,1.24761401]
[1750325529590,0.341,105070.0,105060.0,1.24761401]
[1750325531251,0.34,105070.0,105060.0,1.24761401]
[1750325531745,0.7277293,105080.0,105070.0,0.25020059]
[1750325532035,0.7277293,105080.0,105070.0,0.47447017]
[1750325533382,0.6991323,105080.0,105070.0,0.47447017]
[1750325534156,0.7001323,105080.0,105070.0,0.47447017]
[1750325535247,0.341,105080.0,105070.0,0.40547952]
[1750325535470,0.7001323,105080.0,105070.0,0.40547952]
[1750325535679,0.7001323,105080.0,105070.0,0.63875478]
[1750325538690,0.341,105080.0,105070.0,0.63875478]
[1750325538936,0.7001323,105080.0,105070.0,0.63875478]
[1750325540019,0.70964813,105080.0,105070.0,0.63875478]
[1750325540230,0.71916414,105080.0,105070.0,0.63875478]
[1750325540448,0.71916405,105080.0,105070.0,0.63875478]
[1750325541094,0.70964813,105080.0,105070.0,0.63875478]
[1750325541324,0.7001323,105080.0,105070.0,0.63875478]
[1750325542263,0.70964822,105080.0,105070.0,0.63875478]
[1750325543948,1.0878129,105080.0,105070.0,0.79247478]
[1750325544171,1.07829662,105080.0,105070.0,0.79247478]
[1750325544389,1.0878129,105080.0,105070.0,0.79247478]
[1750325544603,0.36003202,105080.0,105070.0,0.79247478]
[1750325544823,1.0878129,105080.0,105070.0,0.88774463]
[1750325545045,1.07829662,105080.0,105070.0,0.79247478]
[1750325547734,1.0878129,105080.0,105070.0,0.79247478]
[1750325549166,1.07829662,105080.0,105070.0,0.79247478]
[1750325549386,1.0878129,105080.0,105070.0,0.79247478]
[1750325551297,0.7286806,105080.0,105070.0,0.79247478]
[1750325551525,0.71916432,105080.0,105070.0,0.79247478]
[1750325552485,0.7286806,105080.0,105070.0,0.79247478]
[1750325552909,0.72868051,105080.0,105070.0,0.88774463]
[1750325553124,0.73819679,105080.0,105070.0,0.88774463]
[1750325553336,1.08781281,105080.0,105070.0,0.88774463]
[1750325553759,0.72868051,105080.0,105070.0,0.88774463]
[1750325554188,0.71916432,105080.0,105070.0,0.88774463]
[1750325554838,0.70964822,105080.0,105070.0,0.88774463]
[1750325555112,0.71916432,105080.0,105070.0,0.88774463]
[1750325555732,0.70964822,105080.0,105070.0,0.88774463]
[1750325556785,0.70964813,105080.0,105070.0,0.88774463]
[1750325557229,0.71916405,105080.0,105070.0,0.88774463]
[1750325557780,0.72868015,105080.0,105070.0,0.73402463]
[1750325557991,0.70964813,105080.0,105070.0,0.88774463]
[1750325558412,0.71916414,105080.0,105070.0,0.88774463]
[1750325559052,0.72868024,105080.0,105070.0,0.88774463]
[1750325560166,0.71916414,105080.0,105070.0,0.88774463]
[1750325563676,0.71916414,105080.0,105070.0,0.79247478]
[1750325566508,0.72868024,105080.0,105070.0,0.79247478]
[1750325567542,0.73819643,105080.0,105070.0,0.79247478]
[1750325567921,0.72868024,105080.0,105070.0,0.79247478]
[1750325568442,0.92852769,105080.0,105070.0,0.61972085]
[1750325568698,1.09732882,105080.0,105070.0,0.79247496]
[1750325568938,1.13544119,105080.0,105070.0,0.80199179]
[1750325569184,1.11640854,105080.0,105070.0,0.89726164]
[1750325569423,1.13544119,105080.0,105070.0,0.80199179]
[1750325570366,1.13544182,105080.0,105070.0,0.80199179]
[1750325570819,1.13544182,105080.0,105070.0,0.63875496]
[1750325571025,1.31625698,105080.0,105070.0,0.79247496]
[1750325574707,1.32577353,105080.0,105070.0,0.79247496]
[1750325576790,1.29717753,105080.0,105070.0,0.79247496]
[1750325578457,1.29717753,105080.0,105070.0,0.80199179]
[1750325578911,1.10684636,105080.0,105070.0,0.80199179]
[1750325579135,0.37906521,105080.0,105070.0,0.80199179]
[1750325579362,1.09732981,105080.0,105070.0,0.80199179]
[1750325579870,0.36003238,105080.0,105070.0,0.80199179]
[1750325580091,1.07829698,105080.0,105070.0,0.89726164]
[1750325580314,1.07829698,105080.0,105070.0,0.80199179]
[1750325580868,1.07829653,105080.0,105070.0,0.80199179]
[1750325581096,1.06878043,105080.0,105070.0,0.80199179]
[1750325581305,1.07829644,105080.0,105070.0,0.80199179]
[1750325582007,1.06878043,105080.0,105070.0,0.74199179]
[1750325582212,1.07829635,105080.0,105070.0,0.74199179]
[1750325583670,1.08781254,105080.0,105070.0,0.74199179]
[1750325584063,1.08781245,105080.0,105070.0,0.74199179]
[1750325584481,1.09732873,105080.0,105070.0,0.74199179]
[1750325584694,1.09732864,105080.0,105070.0,0.74199179]
[1750325585358,1.10684546,105080.0,105070.0,0.74199179]
[1750325587567,1.27814488,105080.0,105070.0,0.71340085]
[1750325587802,1.27814488,105080.0,105070.0,0.72291804]
[1750325588239,1.27814488,105080.0,105070.0,0.74195179]
[1750325588240,1.0592646,105080.0,105070.0,0.74195179]
[1750325588912,1.07829671,105080.0,105070.0,0.74195179]
[1750325589479,1.08781308,105080.0,105070.0,0.74195179]
[1750325590525,1.09732918,105080.0,105070.0,0.74195179]
[1750325591600,1.10684492,105080.0,105070.0,0.74195179]
[1750325592605,1.10684564,105080.0,105070.0,0.74195179]
[1750325593047,1.08781281,105080.0,105070.0,0.83613547]
[1750325593548,1.11640981,105080.0,105070.0,0.83613547]
[1750325593771,1.12592618,105080.0,105070.0,0.83613547]
[1750325593981,1.12592618,105080.0,105070.0,0.74195179]
[1750325594412,1.13544264,105080.0,105070.0,0.74195179]
[1750325595943,1.12592618,105080.0,105070.0,0.74195179]
[1750325597453,0.39814521,105080.0,105070.0,0.74195179]
[1750325597711,1.11640981,105080.0,105070.0,0.74195179]
[1750325597936,1.12592618,105080.0,105070.0,0.74195179]
[1750325599977,1.12592618,105080.0,105070.0,0.74195179]
[1750325604264,1.32577381,105080.0,105070.0,0.73243496]
[1750325604474,1.31625798,105080.0,105070.0,0.73243496]
[1750325604888,1.30674188,105080.0,105070.0,0.72291813]
[1750325605533,1.30674188,105080.0,105070.0,0.73243532]
[1750325606187,1.30674188,105080.0,105070.0,0.74195242]
[1750325607436,1.2972256,105080.0,105070.0,0.74195242]
[1750325608286,1.2972256,105080.0,105070.0,0.73243532]
[1750325609349,1.31208494,105080.0,105070.0,0.26457526]
[1750325609564,1.66170078,105080.0,105070.0,0.40225526]
[1750325609778,1.30256848,105080.0,105070.0,0.40225526]
[1750325611175,1.30256848,105080.0,105070.0,0.24857526]
[1750325613029,1.80210507,105080.0,105070.0,0.23327526]
[1750325613254,1.79100507,105080.0,105070.0,0.23327526]
[1750325613720,1.80210507,105080.0,105070.0,0.23327526]
[1750325614883,1.44297277,105080.0,105070.0,0.23327526]
[1750325615492,0.19986657,105070.0,105060.0,0.26417526]
[1750325615721,0.19986657,105070.0,105060.0,0.23327526]
[1750325615722,1.09466039,105070.0,105060.0,0.23327526]
[1750325615937,6.15358837,105070.0,105060.0,0.23327526]
[1750325616226,6.18219137,105070.0,105060.0,0.23327526]
[1750325616458,6.55114695,105070.0,105060.0,0.23327526]
[1750325616701,0.53988558,105060.0,105050.0,0.23337526]
[1750325616889,1.82059526,105060.0,105050.0,0.23337526]
[1750325618030,1.46146296,105060.0,105050.0,0.23337526]
[1750325618470,1.46146296,105060.0,105050.0,0.24977526]
[1750325618686,1.30778296,105060.0,105050.0,0.0353]
[1750325618908,1.46150296,105060.0,105050.0,0.0313]
[1750325619806,1.46150296,105060.0,105050.0,0.0323]
[1750325620108,1.4202664,105060.0,105050.0,0.0323]
[1750325620308,1.4202664,105060.0,105050.0,0.09029231]
[1750325620936,1.4202664,105060.0,105050.0,0.0323]
[1750325621856,1.42026448,105060.0,105050.0,0.0323]
[1750325622527,1.44887048,105060.0,105050.0,0.0323]
[1750325624348,1.44887048,105060.0,105050.0,0.26557526]
[1750325625300,1.79014912,105060.0,105050.0,0.26557526]
[1750325625513,1.78122114,105060.0,105050.0,0.26557526]
[1750325631010,1.78122114,105060.0,105050.0,0.24977526]
[1750325632237,1.78122114,105060.0,105050.0,0.26527526]
[1750325636269,1.80104885,105060.0,105050.0,0.26527526]
[1750325637259,1.78122114,105060.0,105050.0,0.26527526]
[1750325637497,1.78122114,105060.0,105050.0,0.26427526]
[1750325638222,1.80901172,105060.0,105050.0,0.26427526]
[1750325641691,1.83180774,105060.0,105050.0,0.26427526]
[1750325641920,1.87108774,105060.0,105050.0,0.26427526]
[1750325642390,1.87108869,105060.0,105050.0,0.26427526]
[1750325643976,1.87108869,105060.0,105050.0,0.26016126]
[1750325644481,1.8710888,105060.0,105050.0,0.26016126]
[1750325647170,1.96635692,105060.0,105050.0,0.26016126]
[1750325648923,1.94849775,105060.0,105050.0,0.26016126]
[1750325650193,1.94849769,105060.0,105050.0,0.26016126]
[1750325650848,1.99484972,105060.0,105050.0,0.26016126]
[1750325653012,1.99484819,105060.0,105050.0,0.26016126]
[1750325658714,1.9948444,105060.0,105050.0,0.26016126]
[1750325658937,1.89957455,105060.0,105050.0,0.26016126]
[1750325661567,1.89957412,105060.0,105050.0,0.26016126]
[1750325662673,1.89957391,105060.0,105050.0,0.26016126]
[1750325664505,1.89957522,105060.0,105050.0,0.26016126]
[1750325665065,1.89957796,105060.0,105050.0,0.26016126]
[1750325667050,1.99484781,105060.0,105050.0,0.26016126]
[1750325667263,1.99484798,105060.0,105050.0,0.26016126]
[1750325669927,1.89957813,105060.0,105050.0,0.26016126]
[1750325670137,1.89957638,105060.0,105050.0,0.26016126]
[1750325673524,1.99485531,105060.0,105050.0,0.24466126]
[1750325673740,7.04485531,105060.0,105050.0,0.24466126]
[1750325673956,7.02700062,105060.0,105050.0,0.24466126]
[1750325674178,7.14012424,105060.0,105050.0,0.26076126]
[1750325674839,7.14012373,105060.0,105050.0,0.26076126]
[1750325676183,7.14012389,105060.0,105050.0,0.26076126]
[1750325676861,7.04485404,105060.0,105050.0,0.26076126]
[1750325678904,7.04485347,105060.0,105050.0,0.26076126]
[1750325679341,7.02700031,105060.0,105050.0,0.26076126]
[1750325683463,5.94960341,105060.0,105050.0,0.26076126]
[1750325683818,7.02700031,105060.0,105050.0,0.26076126]
[1750325684454,7.12227016,105060.0,105050.0,0.26076126]
[1750325684703,7.12226968,105060.0,105050.0,0.26076126]
[1750325685603,7.02699983,105060.0,105050.0,0.26076126]
[1750325686046,1.3295886,105060.0,105050.0,0.26076126]
[1750325686271,6.9317209,105060.0,105050.0,0.027486]
[1750325686487,1.6887209,105060.0,105050.0,0.027486]
[1750325686945,1.8817209,105060.0,105050.0,0.027486]
[1750325687628,1.88172036,105060.0,105050.0,0.027486]
[1750325688165,1.68872036,105060.0,105050.0,0.027486]
[1750325688389,1.88172036,105060.0,105050.0,0.027486]
[1750325692923,0.80432346,105060.0,105050.0,0.027486]
[1750325693155,0.44886149,105060.0,105050.0,0.28584411]
[1750325693378,1.13862907,105060.0,105050.0,0.25594717]
[1750325693603,1.30245978,105060.0,105050.0,0.25594717]
[1750325694512,1.31197733,105060.0,105050.0,0.25594717]
[1750325694725,1.48330936,105060.0,105050.0,0.2369098]
[1750325694938,1.48330936,105060.0,105050.0,0.2273908]
[1750325695162,1.47379145,105060.0,105050.0,0.2273908]
[1750325695428,1.46427345,105060.0,105050.0,0.46066606]
[1750325695646,1.55002503,105060.0,105050.0,0.26076126]
[1750325695891,1.45475518,105060.0,105050.0,0.26076126]
[1750325701866,1.81388748,105060.0,105050.0,0.26076126]
[1750325703215,1.45475518,105060.0,105050.0,0.26076126]
[1750325704218,1.81388748,105060.0,105050.0,0.26076126]
[1750325704442,0.73649058,105060.0,105050.0,0.26076126]
[1750325704682,1.45475518,105060.0,105050.0,0.26076126]
[1750325705997,1.45471518,105060.0,105050.0,0.26076126]
[1750325709034,1.30103518,105060.0,105050.0,0.26076126]
[1750325709493,1.45479518,105060.0,105050.0,0.26076126]
[1750325709716,0.73653058,105060.0,105050.0,0.26076126]
[1750325709948,1.45479518,105060.0,105050.0,0.26076126]
[1750325711853,1.45475518,105060.0,105050.0,0.26076126]
[1750325712064,1.30103518,105060.0,105050.0,0.26076126]
[1750325712986,1.30103518,105060.0,105050.0,0.26076126]
[1750325713187,1.45475518,105060.0,105050.0,0.26076126]
[1750325715776,1.45475518,105060.0,105050.0,0.46066606]
[1750325716004,1.45475518,105060.0,105050.0,0.47018524]
[1750325718728,1.30103518,105060.0,105050.0,0.47018524]
[1750325719062,1.45475518,105060.0,105050.0,0.47018524]
[1750325720017,1.55476208,105060.0,105050.0,0.47018524]
[1750325721373,1.55476208,105060.0,105050.0,0.26076126]
[1750325722946,1.55472208,105060.0,105050.0,0.46066597]
[1750325723386,1.55472208,105060.0,105050.0,0.45114679]
[1750325723610,1.55472208,105060.0,105050.0,0.46066606]
[1750325725415,1.55472208,105060.0,105050.0,0.47018524]
[1750325726798,1.55472208,105060.0,105050.0,0.27028053]
[1750325728791,1.55472208,105060.0,105050.0,0.47018524]
[1750325729292,1.55472208,105060.0,105050.0,0.27028053]
[1750325730247,1.55472208,105060.0,105050.0,0.47018524]
[1750325730598,1.55472208,105060.0,105050.0,0.26076126]
[1750325731036,1.64999193,105060.0,105050.0,0.26076126]
[1750325731734,1.55472208,105060.0,105050.0,0.26076126]
[1750325734444,1.91385438,105060.0,105050.0,0.26076126]
[1750325735327,0.83645748,105060.0,105050.0,0.26076126]
[1750325735574,1.40104208,105060.0,105050.0,0.26076126]
[1750325735795,1.55476208,105060.0,105050.0,0.26076126]
[1750325739651,0.83649748,105060.0,105050.0,0.26076126]
[1750325739865,1.55476208,105060.0,105050.0,0.26076126]
[1750325740824,1.41056035,105060.0,105050.0,0.45114679]
[1750325741065,1.56436035,105060.0,105050.0,0.46066606]
[1750325742279,1.41056035,105060.0,105050.0,0.46066606]
[1750325742494,1.56436035,105060.0,105050.0,0.46066606]
[1750325742939,1.56436035,105060.0,105050.0,0.47018524]
[1750325745330,1.56432035,105060.0,105050.0,0.47018524]
[1750325745515,1.56432035,105060.0,105050.0,0.46066606]
[1750325746811,1.56432035,105060.0,105050.0,0.27028053]
[1750325751032,1.56432035,105060.0,105050.0,0.26076126]
[1750325753358,1.56432035,105060.0,105050.0,0.26076126]
[1750325765260,0.84605575,105060.0,105050.0,0.26076126]
[1750325765477,0.69229575,105060.0,105050.0,0.27028053]
[1750325765699,1.56424035,105060.0,105050.0,0.46066606]
[1750325766000,1.56424035,105060.0,105050.0,0.47018524]
[1750325766747,1.56424035,105060.0,105050.0,0.47970433]
[1750325768952,1.41056035,105060.0,105050.0,0.47970433]
[1750325769171,1.56424035,105060.0,105050.0,0.47970433]
[1750325769630,0.4696129,105060.0,105050.0,0.66294543]
[1750325769877,0.1010069,105060.0,105050.0,0.66294543]
[1750325770133,0.1010069,105060.0,105050.0,1.17575773]
[1750325770344,0.4410069,105060.0,105050.0,1.17575773]
[1750325771027,0.1010069,105060.0,105050.0,0.58335017]
[1750325771316,0.1010069,105060.0,105050.0,0.59789102]
[1750325771551,0.05102059,105060.0,105050.0,0.59889102]
[1750325772014,0.03542059,105060.0,105050.0,0.59889102]
[1750325772272,0.03542059,105060.0,105050.0,1.10802332]
[1750325772479,0.03542059,105060.0,105050.0,1.46615562]
[1750325772690,0.03542059,105060.0,105050.0,1.46915562]
[1750325772909,0.03542059,105060.0,105050.0,1.11002332]
[1750325773128,0.03542059,105060.0,105050.0,1.17002332]
[1750325773576,0.03542059,105060.0,105050.0,1.17102332]
[1750325774694,0.03542059,105060.0,105050.0,0.81189102]
[1750325774909,0.03542059,105060.0,105050.0,1.17102332]
[1750325777200,0.03542059,105060.0,105050.0,0.81189102]
[1750325777404,0.03542059,105060.0,105050.0,1.17102332]
[1750325781116,0.01903021,105090.0,105080.0,0.0322]
[1750325781356,0.37816251,105090.0,105080.0,0.28287893]
[1750325781625,0.37816251,105090.0,105080.0,0.4732101]
[1750325781831,0.3876778,105090.0,105080.0,0.50175867]
[1750325782286,0.37816251,105090.0,105080.0,0.34635867]
[1750325782521,0.3876778,105090.0,105080.0,0.50183867]
[1750325782939,0.37816251,105090.0,105080.0,0.50183867]